Workbook

Sheet Sheet1
A1: 2025年生产部8月接收处置记录统计表 | R1: 自产废物
A2: 废物名称 | B2: 危废代码 | C2: 形态 | D2: 上月结存 | E2: 本月接收量 | F2: 处置量及工艺 | J2: 库存量 | K2: 1#库 | L2: 2#库 | M2: 干化 | N2: 罐区 | O2: 料坑 | R2: 废物名称 | S2: 上月结存 | T2: 本月产生量 | U2: 包数 | V2: 本月处理 | Y2: 库存 | Z2: 备注 | AA2: 存储位置
F3: 固废焚烧 | G3: 废液焚烧 | H3: 清洗大桶 | I3: 污泥干化 | K3: 1#库 | L3: 2#库 | M3: 干化 | N3: 罐区 | O3: 料坑 | V3: 焚烧处置 | W3: 液体炉 | X3: 拉运
A4: 废盐 | B4: 271-005-02 | C4: 固态 | D4: 3 | J4: =D4+E4-F4-G4-H4-I4 -> 3 | K4: 3 | P4: =K4+L4+M4+N4+O4 -> 3 | R4: 炉渣（回转窑） | S4: 325.135 | T4: =112.345-22.73 -> 89.615 | U4: =88-8 -> 80 | X4: 151.265 | Y4: =S4+T4-V4-X4-W4 -> 263.485
A5: 废药物、药品 杀虫剂、磷化铝等 | B5: 900-003-04 | C5: 固态 | D5: 0 | E5: =0.15 -> 0.15 | F5: =0.15 -> 0.15 | J5: 0 | P5: 0 | R5: 飞灰（回转窑） | S5: 14.628 | T5: =15.5 -> 15.5 | U5: 37 | X5: 16.51 | Y5: 13.618
A6: 废有机溶剂及废物 | B6: 900-402-06 | C6: 液态 | D6: 127.312 | E6: =0.3+2.4835 -> 2.7835 | F6: =0.3 -> 0.3 | J6: 129.7955 | L6: 129.7955 | P6: 129.7955 | R6: 飞灰（废液炉） | S6: 3.53 | T6: 4.2 | U6: 11 | X6: 4.93 | Y6: 2.8
A7: 废有机溶剂 | B7: 900-404-06 | C7: 液态 | D7: 151.722 | E7: =27.4+27.18+1.466+27.08+54.48+27.03+27.09 -> 191.726 | F7: =10+10+3+5.55+1.466+6+5+5+11 -> 57.016 | G7: =25.8+8.31+15 -> 49.11 | J7: 237.322 | L7: 237.322 | P7: 237.322 | R7: 废油渣/泥 | S7: 0 | Y7: 0 | Z7: 精馏切水后剩下的罐底泥
A8: 废有机废液 | B8: 900-405-06 | C8: 液态 | D8: 0 | E8: =4.5 -> 4.5 | J8: 4.5 | L8: 4.5 | P8: 4.5 | R8: 含油污水 | S8: 0 | T8: 0.63 | V8: 0.63 | Y8: 0 | Z8: 蒸汽清洗过程 | AA8: 2#库
A9: 废有机溶剂 | B9: 900-407-06 | C9: 液态 | D9: 164.338 | E9: =12.64 -> 12.64 | G9: =8.04+3+17.34+8.2 -> 36.58 | J9: 140.398 | L9: 140.398 | P9: 140.398 | R9: 废商标 | S9: 0 | T9: 0.31 | V9: 0.31 | Y9: 0 | Z9: 除商标 | AA9: 2#库
A10: 危废污泥 | B10: 900-409-06 | C10: 固态 | D10: 88.88 | E10: =19.94+26.3+27.78 -> 74.02 | F10: =16.64+45.18+27.06+19.94+26.3 -> 135.12 | J10: 27.78 | L10: 27.78 | P10: 27.78 | R10: 废残液 | S10: 0 | T10: 0.885 | V10: 0.885 | Y10: 0 | Z10: 抽残液 | AA10: 2#库
A11: 油污水 | B11: 251-001-08 | C11: 液态 | D11: 670.08 | E11: =3.1 -> 3.1 | G11: =22.1+5.7+10.88+16.5+22.32+16.58+6.4 -> 100.48 | J11: 572.7 | N11: 572.7 | P11: 572.7 | R11: 废渣 | S11: 0 | T11: 0.475 | V11: 0.475 | Y11: 0 | Z11: 清洗过程 | AA11: 2#库
A12: 废溶剂油 | B12: 291-001-08 | C12: 半固态 | D12: 34.28 | E12: =16.94 -> 16.94 | J12: 51.22 | K12: =51.22-20 -> 31.22 | O12: 20 | P12: 51.22 | R12: 漆渣 | S12: 0 | Y12: 0 | Z12: 清洗过程
A13: 研磨泥 | B13: 900-200-08 | C13: 固态 | D13: 10.881 | E13: =17.433 -> 17.433 | F13: =10.881+17.433 -> 28.314 | J13: 0 | P13: 0 | R13: 污水厂污泥 | S13: 0 | T13: 1.21 | V13: 1.21 | Y13: 0 | Z13: 水处理后产生的污泥 | AA13: 2#库
A14: HW08废油 | B14: 900-200-08 | C14: 液态 | D14: 82.543 | E14: =3.72 -> 3.72 | G14: =5.72+16.8+5.5 -> 28.02 | J14: 58.243 | K14: 11.883 | N14: 46.36 | P14: 58.243 | R14: 废清洗剂 | S14: 0 | Y14: 0 | Z14: 清洗剂清洗过程
A15: 废煤油 | B15: 900-201-08 | C15: 液态 | D15: 1.48 | E15: =4.52+0.64 -> 5.16 | J15: 6.64 | K15: 4.52 | N15: 2.12 | P15: 6.64
A16: 废润滑脂 | B16: 900-209-08 | C16: 半固态 | D16: 0 | E16: =0.082+0.081 -> 0.163 | F16: =0.082 -> 0.082 | J16: 0.081 | K16: 0.081 | P16: 0.081
A17: 水处理浮渣及污泥 | B17: 900-210-08 | C17: 半固态 | D17: 250.238 | E17: =2.844+9+4.204+0.071 -> 16.119 | F17: =1.94+6.158+2.844+17.44+4+8+9.94+10+21.9 -> 82.222 | J17: 184.135 | K17: 9.071 | L17: 4.204 | N17: 170.86 | P17: 184.135
A18: 废机油、含油废水 | B18: 900-210-08 | C18: 液态 | D18: 71.2 | E18: =6.34+15.12+4.94 -> 26.4 | F18: =6.74 -> 6.74 | J18: 90.86 | K18: 31.6 | L18: 59.26 | P18: 90.86
A19: 废油泥 | B19: 900-210-08 | C19: 固态 | D19: 51.02 | E19: =3.712+1.2765+20.7 -> 25.6885 | F19: =4.9885 -> 4.9885 | J19: 71.72 | L19: 71.72 | P19: 71.72
A20: 废矿物油 | B20: 900-214-08 | C20: 液态 | D20: 41.03745 | E20: =3.892+1.5+10.38 -> 15.772 | G20: =0.002 -> 0.002 | J20: 56.80745 | L20: 10.38 | N20: 46.42745 | P20: 56.80745
A21: 废矿物油 | B21: 900-217-08 | C21: 液态 | D21: 47.94755 | E21: =0.56+0.04+1.2+1.89 -> 3.69 | J21: 51.63755 | N21: 51.63755 | P21: 51.63755
A22: 砂轮渣 | B22: 900-217-08 | C22: 固态 | D22: 0 | E22: =2.24 -> 2.24 | F22: =2.24 -> 2.24 | J22: 0 | P22: 0
A23: 废液压油 | B23: 900-218-08 | C23: 液态 | D23: 35.704 | E23: =2.94+2.32+2.631+1.5 -> 9.391 | J23: 45.095 | N23: 45.095 | P23: 45.095
A24: 废冷冻机油 | B24: 900-219-08 | C24: 液态 | D24: 14.53 | E24: =0.16 -> 0.16 | J24: 14.69 | N24: 14.69 | P24: 14.69
A25: 废矿物油与含矿物油废物 | B25: 900-220-08 | C25: 液态 | D25: 2.809 | J25: 2.809 | N25: 2.809 | P25: 2.809
A26: 废矿物油 | B26: 900-249-08 | C26: 液态 | D26: 116.11932 | E26: =6.573+0.16+0.138+0.15+2.2235+1.24+3.64 -> 14.1245 | J26: 130.24382 | K26: 4.88 | L26: 6.42 | N26: 118.94382 | P26: 130.24382
A27: 废矿物油、废油桶 | B27: 900-249-08 | C27: 固态 | D27: 21.204 | E27: =0.231+0.36+0.38+0.34+16.6+5.52+8.46+5.72+15.2+8.28+4.18+4.54+3.58 -> 73.391 | F27: =4.06+3.98+8.451+4.06+0.36+0.06+0.34 -> 21.311 | H27: =5.52 -> 5.52 | J27: 67.764 | K27: =66.56-40 -> 26.56 | L27: 1.204 | O27: 40 | P27: 67.764
A28: 废水、乳化液 | B28: 900-007-09 | C28: 液态 | D28: 13.746 | E28: =0.936+7.187+6.674+1.829 -> 16.626 | G28: =3.3 -> 3.3 | J28: 27.072 | L28: 27.072 | P28: 27.072
A29: 废乳化液 | B29: 900-006-09 | C29: 液态 | D29: 73.4475 | E29: =0.855+4+8.5785+3.528 -> 16.9615 | F29: =0.146+0.85-0.05 -> 0.946 | G29: =5+26.1 -> 31.1 | J29: 58.363 | L29: 58.363 | P29: 58.363
A30: 砂轮沫 | B30: 900-006-09 | C30: 固态 | D30: 0 | E30: =5.33 -> 5.33 | F30: =5.28+0.05 -> 5.33 | J30: 0 | P30: 0
A31: 废水汽提塔排重质烃 | B31: 252-009-11 | C31: 液态 | D31: 36.9 | J31: 36.9 | L31: 36.9 | P31: 36.9
A32: 煤焦油、釜残 | B32: 900-013-11 | C32: 固态 | D32: 2.29 | E32: =29.34 -> 29.34 | F32: =12+12.78 -> 24.78 | J32: 6.85 | K32: =4.56 -> 4.56 | L32: 2.29 | P32: 6.85
A33: 煤焦油 | B33: 900-013-11 | C33: 液态 | D33: 19.0225 | E33: =30.4 -> 30.4 | J33: 49.4225 | K33: =11.2025 -> 11.2025 | L33: 38.22 | P33: 49.4225
A34: 釜残 | B34: 900-013-11 | C34: 半固态 | D34: 468.099 | E34: =31.6+16.24+29.58+28.16 -> 105.58 | F34: =4+3.7+8+3+11.02+3+6+6.82+3+6 -> 54.54 | J34: 519.139 | K34: =519.139-40 -> 479.139 | O34: 40 | P34: 519.139
A35: 煤焦油 | B35: 451-003-11 | C35: 液态 | D35: 462.05 | E35: =47.38+50.96+52.2+50.42 -> 200.96 | F35: =4.89+10+18+20.16+10+8+9+10+13.36 -> 103.41 | J35: 559.6 | L35: 61 | N35: 498.6 | P35: 559.6
A36: 漆渣 | B36: 900-250-12 | C36: 固态 | D36: 34.005 | E36: =8.775+10.641 -> 19.416 | F36: =17.434+16.571+8.775+10.641 -> 53.421 | J36: 0 | P36: 0
A37: 漆渣 | B37: 900-250-12 | C37: 半固态 | D37: 0 | E37: =0.306+0.314 -> 0.62 | F37: =0.306+0.314 -> 0.62 | J37: 0 | P37: 0
A38: 废漆渣 | B38: 900-252-12 | C38: 固态 | D38: 179.2775 | E38: =12.4+32.676+10.68+13.06+8.5+20.882+58.5805+17.378+0.9+15.2915+40.4735+28.089+7.5+23.5045+30.2335+13.02+9.46 -> 342.6285 | F38: =23.8365+33.371+16.676+24.5+10.78+14.32+6.66+36.62+106.4255+34.029+23.5045+22.4335 -> 353.156 | J38: 168.75 | K38: =168.75-140 -> 28.75 | O38: 140 | P38: 168.75
A39: 漆渣 | B39: 900-252-12 | C39: 半固态 | D39: 0 | E39: =0.151 -> 0.151 | F39: =0.151 -> 0.151 | J39: 0 | P39: 0
A40: 硒鼓墨盒 | B40: 900-299-12 | C40: 固态 | D40: 0 | E40: =0.005+0.3 -> 0.305 | F40: =0.305 -> 0.305 | J40: 0 | P40: 0
A41: 油漆渣 | B41: 900-299-12 | C41: 液态 | D41: 2.4 | F41: =2.4 -> 2.4 | J41: 0 | P41: 0
A42: 污泥 | B42: 264-012-12 | C42: 固态 | D42: 0 | E42: =0.62 -> 0.62 | F42: =0.62 -> 0.62 | J42: 0 | P42: 0
A43: 废漆渣稀释剂混合物 | B43: 264-013-12 | C43: 液态 | D43: 0 | E43: =0.14 -> 0.14 | F43: =0.14 -> 0.14 | J43: 0 | P43: 0
A44: 发泡废料，废胶水 | B44: 900-014-13 | C44: 固态 | D44: 7.62 | E44: =15.08+5.16+6.68+3.74+7.42+12.84+3.86+8.04+3.1 -> 65.92 | F44: =5.16+10.88+11.84+4.2+3.74+7.42+16.7 -> 59.94 | J44: 13.6 | K44: =13.6-13.6 -> 0 | O44: 13.6 | P44: 13.6
A45: 废树脂 | B45: 900-015-13 | C45: 固态 | D45: 0 | E45: =0.615+1.8 -> 2.415 | F45: =0.615 -> 0.615 | J45: 1.8 | K45: 1.8 | P45: 1.8
A46: 有机树脂废物 | B46: 900-016-13 | C46: 半固态 | D46: 0 | E46: =4.296 -> 4.296 | J46: 4.296 | K46: 4.296 | P46: 4.296
A47: PBL真空废液 | B47: 265-101-13 | C47: 液态 | D47: 17.52 | J47: 17.52 | K47: 17.52 | P47: 17.52
A48: 不合格有机树脂 | B48: 265-101-13 | C48: 半固态 | D48: 0 | E48: =1.558 -> 1.558 | F48: =1.558 -> 1.558 | J48: 0 | P48: 0
A49: PBL真空废液 | B49: 265-101-13 | C49: 固态 | D49: 1.42 | J49: 1.42 | K49: 1.42 | P49: 1.42
A50: 废树脂 | B50: 265-103-13 | C50: 固态 | D50: 0 | E50: =0.5 -> 0.5 | F50: =0.5 -> 0.5 | J50: 0 | P50: 0
A51: 废显影液 | B51: 900-019-16 | C51: 液态 | D51: 0 | E51: =1.36 -> 1.36 | F51: =1.36 -> 1.36 | J51: 0 | P51: 0
A52: 镀铜溶液 | B52: 336-062-17 | C52: 液态 | D52: 9.66 | F52: =4 -> 4 | G52: 5.66 | J52: 0 | P52: 0
A53: 电镀污泥 | B53: 336-063-17 | C53: 半固态 | D53: 2.88 | F53: =2.88 -> 2.88 | J53: 0 | P53: 0
A54: 磷化污泥 | B54: 336-064-17 | C54: 固态 | D54: 24.4225 | E54: =0.507+4.469+4.8 -> 9.776 | F54: =18.84+5.5825+0.507+4.469 -> 29.3985 | J54: 4.8 | L54: 4.8 | P54: 4.8
A55: 金属表面处理污泥 | B55: 336-064-17 | C55: 液态 | D55: 2.48 | E55: =0.703+2.348 -> 3.051 | F55: =0.703 -> 0.703 | J55: 4.828 | L55: 4.828 | P55: 4.828
A56: 污泥 | B56: 336-069-17 | C56: 液态 | D56: 25.58 | G56: =25.58 -> 25.58 | J56: 0 | P56: 0
A57: 污泥 | B57: 336-069-17 | C57: 固态 | D57: 0 | E57: =13.51 -> 13.51 | F57: =13.51 -> 13.51 | J57: 0 | P57: 0
A58: 废碱液 | B58: 251-015-35 | C58: 液态 | D58: 16.56 | E58: =13.86 -> 13.86 | G58: =16.56 -> 16.56 | J58: 13.86 | L58: 13.86 | P58: 13.86
A59: 废碱泥 | B59: 251-015-35 | C59: 半固态 | D59: 16.84 | F59: =8+8.84 -> 16.84 | J59: 0 | P59: 0
A60: 含酚废水 | B60: 261-070-39 | C60: 液态 | D60: 231.9 | G60: =25.1 -> 25.1 | J60: 206.8 | N60: 206.8 | P60: 206.8
A61: 含油废物 | B61: 900-041-49 | C61: 固态 | D61: 132.85895 | E61: =15.415+12.021+18.1224+24.618+21.5174+10.687+20.536+2.16+17.334+15.08+23.853+21.1635+20.35885+10.565+9.419+13.134+16.18+12.5025+17.818+2.2+8.423 -> 313.10765 | F61: =4+23.36445+12.01+13.925+20.9434+17.4365+46.7402+24.8962+11.017+29.20435+32.973+5.654+19.9 -> 262.0641 | H61: =9.569+14.503+6.983 -> 31.055 | J61: 152.8475 | K61: =151.8055-60 -> 91.8055 | L61: 1.042 | O61: 60 | P61: 152.8475
A62: 废酸碱袋 | B62: 900-042-49 | C62: 固态 | D62: 0 | E62: =0.381+0.276+0.281 -> 0.938 | F62: =0.381+0.276 -> 0.657 | J62: 0.281 | K62: 0.281 | P62: 0.281
A63: 污泥 | B63: 772-006-49 | C63: 半固态 | D63: 0 | E63: =3 -> 3 | F63: =3 -> 3 | J63: 0 | P63: 0
A64: 废活性炭 | B64: 900-039-49 | C64: 固态 | D64: 0.003 | E64: =3.26+0.892+0.203+0.1+1.48+0.68+0.028+20.34+0.446 -> 27.429 | F64: =0.003+3.26+0.892+0.203+1.58+0.68 -> 6.618 | J64: 20.814 | L64: 20.814 | P64: 20.814
A65: 过期化学药品 | B65: 900-047-49 | C65: 固态 | D65: 0 | E65: =1.761+0.33+0.80645 -> 2.89745 | F65: =0.7935+0.9675+0.1+0.41695 -> 2.27795 | J65: 0.6195 | K65: 0.6195 | P65: 0.6195
A66: 乙腈、异丙酮、废液 | B66: 900-047-49 | C66: 液态 | D66: 41.03691 | E66: =1.906+6.8112+0.54+2.342+0.6+2.7181+3.9065+2.1635+0.802+3.868 -> 25.6573 | F66: =5.09061+0.624+1.62+2.896+0.5+2.84 -> 13.57061 | G66: =0.95+0.046+0.8781+0.2078+2.1987 -> 4.2806 | J66: 48.843 | L66: 48.843 | P66: 48.843
A67: 过期面膜原料、残液 | B67: 900-999-49 | C67: 液态 | D67: 16.48 | J67: 16.48 | L67: 16.48 | P67: 16.48
A68: 小计： | D68: 3824.82418 | E68: =SUM(E4:E67) -> 1777.6649 | F68: =SUM(F4:F67) -> 1357.79466 | G68: =SUM(G4:G67) -> 325.7726 | H68: =SUM(H4:H67) -> 36.575 | I68: =SUM(I4:I67) -> 0 | J68: =D68+E68-F68-G68-H68-I68 -> 3882.34682 | K68: =SUM(K4:K67) -> 764.2085 | L68: 1027.4955 | M68: 0 | N68: 1777.04282 | O68: 313.6 | P68: 3882.34682
A69: 合计： | F69: =F68+G68+H68 -> 1720.14226
